[Event "*** Titled Tuesday Blitz"]
[Site "Chess.com"]
[Date "2021.04.20"]
[Round "3"]
[White "sorrm8thatscheckm8"]
[Black "mapleaff"]
[Result "0-1"]
[WhiteElo "2572"]
[BlackElo "2397"]
[TimeControl "180+1"]
[EndTime "10:29:08 PDT"]
[Termination "mapleaff won by resignation"]

1. d4 {[%clk 0:02:53.5]} 1... Nf6 {[%clk 0:02:59.8]} 2. c4 {[%clk 0:02:52.7]}
2... e6 {[%clk 0:02:59.3]} 3. Nf3 {[%clk 0:02:52.5]} 3... d5 {[%clk 0:02:59.4]}
4. Nc3 {[%clk 0:02:52.2]} 4... dxc4 {[%clk 0:02:59.4]} 5. e3 {[%clk 0:02:46.2]}
5... b5 {[%clk 0:02:57.4]} 6. Nxb5 {[%clk 0:02:43]} 6... Bb4+ {[%clk 0:02:56.5]}
7. Bd2 {[%clk 0:02:38]} 7... Bxd2+ {[%clk 0:02:48.6]} 8. Qxd2 {[%clk 0:02:38]}
8... O-O {[%clk 0:02:37.5]} 9. Bxc4 {[%clk 0:02:33.4]} 9... Bb7 {[%clk
0:02:35.6]} 10. Be2 {[%clk 0:02:27.2]} 10... Ne4 {[%clk 0:02:35.2]} 11. Qc2
{[%clk 0:02:23.2]} 11... c5 {[%clk 0:02:34.6]} 12. dxc5 {[%clk 0:02:21.4]} 12...
Qa5+ {[%clk 0:02:32.5]} 13. Nc3 {[%clk 0:01:55.9]} 13... Nxc3 {[%clk 0:02:25.9]}
14. Qxc3 {[%clk 0:01:54.5]} 14... Qxc3+ {[%clk 0:02:25]} 15. bxc3 {[%clk
0:01:54.6]} 15... Rc8 {[%clk 0:02:24.9]} 16. Rb1 {[%clk 0:01:51.6]} 16... Be4
{[%clk 0:02:21.4]} 17. Rb4 {[%clk 0:01:46.7]} 17... f5 {[%clk 0:02:13.2]} 18.
Ng5 {[%clk 0:01:39.5]} 18... Nc6 {[%clk 0:01:47.2]} 19. Nxe4 {[%clk 0:01:07.5]}
19... Nxb4 {[%clk 0:01:46.5]} 20. cxb4 {[%clk 0:01:08.4]} 20... fxe4 {[%clk
0:01:43.1]} 21. O-O {[%clk 0:01:07.7]} 21... a5 {[%clk 0:01:36.7]} 22. a3 {[%clk
0:01:05.9]} 22... Rab8 {[%clk 0:01:34.9]} 23. Bc4 {[%clk 0:01:00]} 23... Kf7
{[%clk 0:01:29.7]} 24. f3 {[%clk 0:00:35.3]} 24... axb4 {[%clk 0:01:24.6]} 25.
axb4 {[%clk 0:00:33.9]} 25... Rxb4 {[%clk 0:01:19.8]} 26. fxe4+ {[%clk
0:00:33.6]} 26... Ke7 {[%clk 0:01:19.9]} 27. Be2 {[%clk 0:00:20.6]} 27... Rxc5
{[%clk 0:01:06.4]} 28. Bf3 {[%clk 0:00:20.7]} 28... Rbc4 {[%clk 0:01:04.6]} 29.
h4 {[%clk 0:00:18.4]} 29... Rc1 {[%clk 0:01:03.7]} 30. g4 {[%clk 0:00:12]} 30...
Rxf1+ {[%clk 0:01:02.4]} 31. Kxf1 {[%clk 0:00:12.9]} 31... Rc2 {[%clk
0:00:58.6]} 32. e5 {[%clk 0:00:11.8]} 32... Rc5 {[%clk 0:00:56.5]} 33. Ke2
{[%clk 0:00:10.9]} 33... Rxe5 {[%clk 0:00:56.4]} 34. Kf2 {[%clk 0:00:11.2]}
34... Ra5 {[%clk 0:00:56.1]} 35. Kg3 {[%clk 0:00:10.2]} 35... h6 {[%clk
0:00:52.1]} 36. Kf4 {[%clk 0:00:07.8]} 36... g5+ {[%clk 0:00:45.8]} 37. hxg5
{[%clk 0:00:07.2]} 37... hxg5+ {[%clk 0:00:46.7]} 38. Kg3 {[%clk 0:00:08.1]}
38... Kf6 {[%clk 0:00:45.4]} 39. Be4 {[%clk 0:00:08.4]} 39... Ra3 {[%clk
0:00:42.8]} 40. Kf3 {[%clk 0:00:07.5]} 40... Ke5 {[%clk 0:00:43.1]} 41. Bg6
{[%clk 0:00:07.1]} 41... Rc3 {[%clk 0:00:39.8]} 42. Bf7 {[%clk 0:00:06.4]} 42...
Rc7 {[%clk 0:00:37.4]} 43. Bg6 {[%clk 0:00:06.6]} 43... Rg7 {[%clk 0:00:38.3]}
44. Bd3 {[%clk 0:00:06.1]} 44... Rg8 {[%clk 0:00:38.1]} 45. Bh7 {[%clk
0:00:05.6]} 45... Rh8 {[%clk 0:00:38]} 46. Bg6 {[%clk 0:00:03.2]} 46... Rh6
{[%clk 0:00:36.7]} 47. Bh5 {[%clk 0:00:02.9]} 47... Rf6+ {[%clk 0:00:34.1]} 48.
Ke2 {[%clk 0:00:03.5]} 48... Rh6 {[%clk 0:00:24.4]} 49. Kf3 {[%clk 0:00:02.8]}
49... Rh7 {[%clk 0:00:24.7]} 50. Ke2 {[%clk 0:00:03.1]} 50... Ra7 {[%clk
0:00:24.1]} 51. Kf3 {[%clk 0:00:03.6]} 51... Ra3 {[%clk 0:00:22.6]} 52. Bg6
{[%clk 0:00:04.1]} 52... Ra1 {[%clk 0:00:18.2]} 53. Bh7 {[%clk 0:00:04.1]} 53...
Rh1 {[%clk 0:00:17.5]} 54. Bg6 {[%clk 0:00:03.9]} 54... Rh3+ {[%clk 0:00:16.5]}
55. Ke2 {[%clk 0:00:02.2]} 55... Kd5 {[%clk 0:00:15.5]} 56. Kd3 {[%clk 0:00:02]}
56... e5 {[%clk 0:00:13.1]} 57. Be4+ {[%clk 0:00:01.7]} 57... Kc5 {[%clk
0:00:12.9]} 58. Bf5 {[%clk 0:00:02.4]} 58... Rg3 {[%clk 0:00:13]} 59. Ke4 {[%clk
0:00:02.8]} 59... Kd6 {[%clk 0:00:13.5]} 60. Kd3 {[%clk 0:00:01.8]} 60... Rg1
{[%clk 0:00:13.5]} 61. Be4 {[%clk 0:00:02.3]} 61... Rxg4 {[%clk 0:00:12.9]} 62.
Bf5 {[%clk 0:00:03]} 62... Ra4 {[%clk 0:00:12.6]} 63. Ke2 {[%clk 0:00:03.2]}
63... e4 {[%clk 0:00:10.4]} 64. Kf2 {[%clk 0:00:03.3]} 64... Ke5 {[%clk
0:00:10.7]} 65. Bg6 {[%clk 0:00:03.7]} 65... Ra2+ {[%clk 0:00:09.5]} 66. Kg3
{[%clk 0:00:04.1]} 66... Re2 {[%clk 0:00:09.8]} 67. Kg4 {[%clk 0:00:04.5]} 67...
Rxe3 {[%clk 0:00:09.8]} 68. Kxg5 {[%clk 0:00:05.4]} 68... Rg3+ {[%clk
0:00:10.2]} 69. Kh5 {[%clk 0:00:05.5]} 69... Rxg6 {[%clk 0:00:10]} 70. Kxg6
{[%clk 0:00:06.4]} 0-1

[Event "*** Titled Tuesday Blitz"]
[Site "Chess.com"]
[Date "2021.04.20"]
[Round "3"]
[White "champ2005"]
[Black "Witik"]
[Result "1/2-1/2"]
[WhiteElo "2997"]
[BlackElo "2682"]
[TimeControl "180+1"]
[EndTime "10:29:21 PDT"]
[Termination "Game drawn - insufficient material"]

1. Nf3 {[%clk 0:03:00.9]} 1... d5 {[%clk 0:02:59.7]} 2. e3 {[%clk 0:03:01.2]}
2... Nf6 {[%clk 0:02:58.9]} 3. c4 {[%clk 0:03:02.1]} 3... e6 {[%clk 0:02:58.9]}
4. b3 {[%clk 0:02:59.7]} 4... c5 {[%clk 0:02:59.1]} 5. Bb2 {[%clk 0:03:00]} 5...
Nc6 {[%clk 0:02:59.6]} 6. cxd5 {[%clk 0:02:58.4]} 6... exd5 {[%clk 0:02:59.6]}
7. d4 {[%clk 0:02:58.8]} 7... cxd4 {[%clk 0:03:00]} 8. exd4 {[%clk 0:02:48.8]}
8... Ne4 {[%clk 0:02:45]} 9. Nbd2 {[%clk 0:02:45.2]} 9... Bb4 {[%clk 0:02:30]}
10. a3 {[%clk 0:02:35.3]} 10... Bc3 {[%clk 0:02:28]} 11. Qc1 {[%clk 0:02:13.3]}
11... Bxb2 {[%clk 0:02:24.8]} 12. Qxb2 {[%clk 0:02:14.2]} 12... O-O {[%clk
0:02:18.9]} 13. Be2 {[%clk 0:01:57.7]} 13... Re8 {[%clk 0:01:47.7]} 14. O-O
{[%clk 0:01:56.8]} 14... Bg4 {[%clk 0:01:38.2]} 15. h3 {[%clk 0:01:44.6]} 15...
Nxd2 {[%clk 0:01:22.9]} 16. Qxd2 {[%clk 0:01:45.5]} 16... Rxe2 {[%clk
0:01:22.1]} 17. Qxe2 {[%clk 0:01:32.9]} 17... Nxd4 {[%clk 0:01:22.3]} 18. Qe5
{[%clk 0:01:01.5]} 18... Nxf3+ {[%clk 0:01:01.2]} 19. gxf3 {[%clk 0:01:01.5]}
19... Bxh3 {[%clk 0:00:54]} 20. Rfe1 {[%clk 0:00:59]} 20... Be6 {[%clk 0:00:32]}
21. Rac1 {[%clk 0:00:53.1]} 21... Rc8 {[%clk 0:00:19]} 22. b4 {[%clk 0:00:50.1]}
22... Rc4 {[%clk 0:00:14.9]} 23. Red1 {[%clk 0:00:28.5]} 23... Rxc1 {[%clk
0:00:10]} 24. Rxc1 {[%clk 0:00:29.4]} 24... h6 {[%clk 0:00:10.6]} 25. Rd1 {[%clk
0:00:26]} 25... Qc8 {[%clk 0:00:09.2]} 26. Qd4 {[%clk 0:00:20.7]} 26... a6
{[%clk 0:00:09.5]} 27. Kh2 {[%clk 0:00:20.9]} 27... Qc2 {[%clk 0:00:09.1]} 28.
Rg1 {[%clk 0:00:20.3]} 28... f6 {[%clk 0:00:05]} 29. Rg2 {[%clk 0:00:12.9]}
29... Qf5 {[%clk 0:00:05.3]} 30. Qg4 {[%clk 0:00:10.5]} 30... Qe5+ {[%clk
0:00:04.3]} 31. Qg3 {[%clk 0:00:11]} 31... Qg5 {[%clk 0:00:04.1]} 32. Qxg5
{[%clk 0:00:06.6]} 32... hxg5 {[%clk 0:00:05]} 33. Kg3 {[%clk 0:00:07.2]} 33...
Kf7 {[%clk 0:00:05]} 34. f4 {[%clk 0:00:07.7]} 34... gxf4+ {[%clk 0:00:05]} 35.
Kxf4 {[%clk 0:00:08.6]} 35... g5+ {[%clk 0:00:05.5]} 36. Ke3 {[%clk 0:00:09.1]}
36... Bd7 {[%clk 0:00:06.1]} 37. Kd4 {[%clk 0:00:09.4]} 37... Ke6 {[%clk
0:00:05.1]} 38. Rh2 {[%clk 0:00:09.9]} 38... Bc6 {[%clk 0:00:05.3]} 39. Rh3
{[%clk 0:00:10.1]} 39... Kf5 {[%clk 0:00:05.9]} 40. Rf3+ {[%clk 0:00:10.6]}
40... Kg6 {[%clk 0:00:06.1]} 41. Rg3 {[%clk 0:00:10.4]} 41... f5 {[%clk
0:00:06.2]} 42. Ke5 {[%clk 0:00:10]} 42... f4 {[%clk 0:00:06]} 43. Rg1 {[%clk
0:00:10.5]} 43... d4 {[%clk 0:00:05.4]} 44. Kxd4 {[%clk 0:00:10.5]} 44... Kf5
{[%clk 0:00:05.8]} 45. Re1 {[%clk 0:00:10.5]} 45... Kg4 {[%clk 0:00:05]} 46.
Rg1+ {[%clk 0:00:10.2]} 46... Kf5 {[%clk 0:00:05.1]} 47. Kd3 {[%clk 0:00:08.3]}
47... g4 {[%clk 0:00:05.4]} 48. Ke2 {[%clk 0:00:08.2]} 48... Bb5+ {[%clk
0:00:05.7]} 49. Ke1 {[%clk 0:00:07.5]} 49... Bc6 {[%clk 0:00:04.9]} 50. Kf1
{[%clk 0:00:06.8]} 50... Bf3 {[%clk 0:00:05]} 51. Ke1 {[%clk 0:00:06.6]} 51...
Ke4 {[%clk 0:00:05.6]} 52. Kd2 {[%clk 0:00:07.2]} 52... Kd4 {[%clk 0:00:06]} 53.
Rc1 {[%clk 0:00:06.7]} 53... g3 {[%clk 0:00:04.6]} 54. fxg3 {[%clk 0:00:07.6]}
54... fxg3 {[%clk 0:00:05.4]} 55. Ke1 {[%clk 0:00:08]} 55... Bc6 {[%clk
0:00:05]} 56. Kf1 {[%clk 0:00:07.7]} 56... g2+ {[%clk 0:00:04.9]} 57. Kf2 {[%clk
0:00:07.7]} 57... Kd3 {[%clk 0:00:05.5]} 58. Rc5 {[%clk 0:00:08.2]} 58... Kd4
{[%clk 0:00:05.6]} 59. Kg1 {[%clk 0:00:08.6]} 59... Kd3 {[%clk 0:00:05.8]} 60.
Rc1 {[%clk 0:00:07.7]} 60... Kd4 {[%clk 0:00:05]} 61. Rc5 {[%clk 0:00:07.9]}
61... Kd3 {[%clk 0:00:05.2]} 62. Kf2 {[%clk 0:00:08.5]} 62... Kd4 {[%clk
0:00:05.5]} 63. Rg5 {[%clk 0:00:09.1]} 63... Kc3 {[%clk 0:00:05.6]} 64. Rg3+
{[%clk 0:00:09]} 64... Kb2 {[%clk 0:00:05.9]} 65. Re3 {[%clk 0:00:09]} 65... Ka2
{[%clk 0:00:06]} 66. Kg1 {[%clk 0:00:09.2]} 66... Kb2 {[%clk 0:00:05.1]} 67. a4
{[%clk 0:00:09.7]} 67... Bxa4 {[%clk 0:00:04.3]} 68. Kxg2 {[%clk 0:00:10.6]}
68... Bb3 {[%clk 0:00:04.6]} 69. Re7 {[%clk 0:00:09.8]} 69... b6 {[%clk
0:00:04.2]} 70. Ra7 {[%clk 0:00:09.1]} 70... Bc4 {[%clk 0:00:03.9]} 71. Kf2
{[%clk 0:00:09.6]} 71... Kb3 {[%clk 0:00:04.1]} 72. Rb7 {[%clk 0:00:10.2]} 72...
b5 {[%clk 0:00:04.4]} 73. Ra7 {[%clk 0:00:10.2]} 73... Kxb4 {[%clk 0:00:04.9]}
74. Rxa6 {[%clk 0:00:10.8]} 74... Kc3 {[%clk 0:00:05.4]} 75. Rb6 {[%clk
0:00:09]} 75... b4 {[%clk 0:00:05.7]} 76. Ke1 {[%clk 0:00:09.9]} 76... b3 {[%clk
0:00:06.1]} 77. Kd1 {[%clk 0:00:10]} 77... b2 {[%clk 0:00:05.8]} 78. Rxb2 {[%clk
0:00:10.4]} 78... Kxb2 {[%clk 0:00:06]} 1/2-1/2

[Event "*** Titled Tuesday Blitz"]
[Site "Chess.com"]
[Date "2021.04.20"]
[Round "3"]
[White "cukin84"]
[Black "Blitzking642"]
[Result "1/2-1/2"]
[WhiteElo "2130"]
[BlackElo "2469"]
[TimeControl "180+1"]
[EndTime "10:29:32 PDT"]
[Termination "Game drawn - insufficient material"]

1. e4 {[%clk 0:03:00.9]} 1... c5 {[%clk 0:02:59]} 2. Nc3 {[%clk 0:03:00.2]} 2...
Nc6 {[%clk 0:02:58.1]} 3. Bb5 {[%clk 0:02:59.2]} 3... Nd4 {[%clk 0:02:58.4]} 4.
Bc4 {[%clk 0:02:58.6]} 4... e6 {[%clk 0:02:57.3]} 5. Nf3 {[%clk 0:02:58.1]} 5...
Ne7 {[%clk 0:02:55.1]} 6. Nxd4 {[%clk 0:02:52.5]} 6... cxd4 {[%clk 0:02:55.8]}
7. Ne2 {[%clk 0:02:51.6]} 7... Nc6 {[%clk 0:02:53.9]} 8. d3 {[%clk 0:02:51.6]}
8... Be7 {[%clk 0:02:49.5]} 9. O-O {[%clk 0:02:50.8]} 9... O-O {[%clk
0:02:49.9]} 10. Bb3 {[%clk 0:02:50.6]} 10... f5 {[%clk 0:02:31.8]} 11. f3 {[%clk
0:02:40.4]} 11... b6 {[%clk 0:02:11.4]} 12. c3 {[%clk 0:02:34.8]} 12... Bc5
{[%clk 0:02:01.3]} 13. Kh1 {[%clk 0:02:29.5]} 13... Bb7 {[%clk 0:02:01.1]} 14.
Ng3 {[%clk 0:02:21.1]} 14... Kh8 {[%clk 0:01:42.1]} 15. Qd2 {[%clk 0:02:10.4]}
15... Qh4 {[%clk 0:01:34.5]} 16. Qg5 {[%clk 0:02:08.2]} 16... Qxg5 {[%clk
0:01:27]} 17. Bxg5 {[%clk 0:02:09.1]} 17... Ne5 {[%clk 0:01:12.7]} 18. Rad1
{[%clk 0:02:02.8]} 18... Ba6 {[%clk 0:01:04.6]} 19. c4 {[%clk 0:01:57.2]} 19...
f4 {[%clk 0:01:01.6]} 20. Ne2 {[%clk 0:01:54.4]} 20... Ng6 {[%clk 0:01:02.1]}
21. g3 {[%clk 0:01:39.3]} 21... e5 {[%clk 0:01:01.3]} 22. gxf4 {[%clk
0:01:32.7]} 22... exf4 {[%clk 0:01:02.2]} 23. Rg1 {[%clk 0:01:32.2]} 23... Bd6
{[%clk 0:00:41.8]} 24. Ba4 {[%clk 0:01:16.7]} 24... Rf7 {[%clk 0:00:26.4]} 25.
a3 {[%clk 0:01:10.1]} 25... Raf8 {[%clk 0:00:26.7]} 26. b4 {[%clk 0:01:08.4]}
26... Ne5 {[%clk 0:00:25.7]} 27. Nxd4 {[%clk 0:01:01.2]} 27... h6 {[%clk
0:00:21.8]} 28. Bh4 {[%clk 0:00:59.7]} 28... g5 {[%clk 0:00:16.7]} 29. Bf2
{[%clk 0:00:57]} 29... Bb7 {[%clk 0:00:17.1]} 30. Rd2 {[%clk 0:00:50.5]} 30...
Kh7 {[%clk 0:00:16.7]} 31. Bd1 {[%clk 0:00:49.8]} 31... Bb8 {[%clk 0:00:15.4]}
32. Nb5 {[%clk 0:00:41.3]} 32... a6 {[%clk 0:00:14.2]} 33. Nc3 {[%clk
0:00:40.8]} 33... Bc7 {[%clk 0:00:12]} 34. Nd5 {[%clk 0:00:40.6]} 34... Bxd5
{[%clk 0:00:11.9]} 35. cxd5 {[%clk 0:00:38.8]} 35... a5 {[%clk 0:00:11.6]} 36.
d4 {[%clk 0:00:39.2]} 36... Nc4 {[%clk 0:00:10.3]} 37. Rd3 {[%clk 0:00:39.2]}
37... axb4 {[%clk 0:00:09.7]} 38. axb4 {[%clk 0:00:38.8]} 38... Bd6 {[%clk
0:00:10.2]} 39. Rb3 {[%clk 0:00:38.2]} 39... Ra8 {[%clk 0:00:10.1]} 40. Be2
{[%clk 0:00:37.7]} 40... Ne3 {[%clk 0:00:09.6]} 41. Bxe3 {[%clk 0:00:37.2]}
41... fxe3 {[%clk 0:00:10.5]} 42. Rxe3 {[%clk 0:00:37.3]} 42... Ra2 {[%clk
0:00:09]} 43. e5 {[%clk 0:00:36.5]} 43... Bxb4 {[%clk 0:00:09.1]} 44. e6 {[%clk
0:00:36.8]} 44... dxe6 {[%clk 0:00:09.1]} 45. dxe6 {[%clk 0:00:36.9]} 45... Re7
{[%clk 0:00:09.7]} 46. d5 {[%clk 0:00:36.4]} 46... Kg7 {[%clk 0:00:09.5]} 47.
Bd3 {[%clk 0:00:32]} 47... Bc5 {[%clk 0:00:09.6]} 48. Rge1 {[%clk 0:00:31]}
48... Kf6 {[%clk 0:00:05.4]} 49. Re4 {[%clk 0:00:28.4]} 49... Rd2 {[%clk
0:00:05.3]} 50. Bb5 {[%clk 0:00:27.5]} 50... Rxd5 {[%clk 0:00:04.6]} 51. f4
{[%clk 0:00:27.9]} 51... Rf5 {[%clk 0:00:03.8]} 52. fxg5+ {[%clk 0:00:27.7]}
52... hxg5 {[%clk 0:00:04.7]} 53. Bd7 {[%clk 0:00:25.8]} 53... Bd6 {[%clk
0:00:04.8]} 54. R4e2 {[%clk 0:00:24]} 54... Rf4 {[%clk 0:00:04.7]} 55. Kg1
{[%clk 0:00:23]} 55... Bc5+ {[%clk 0:00:04.8]} 56. Kg2 {[%clk 0:00:22.3]} 56...
Bd6 {[%clk 0:00:05]} 57. Rf1 {[%clk 0:00:22.1]} 57... Rxf1 {[%clk 0:00:04.4]}
58. Kxf1 {[%clk 0:00:22.1]} 58... b5 {[%clk 0:00:04.8]} 59. Kg2 {[%clk 0:00:21]}
59... b4 {[%clk 0:00:04.8]} 60. Kf3 {[%clk 0:00:21.3]} 60... Bf4 {[%clk
0:00:04.3]} 61. Ke4 {[%clk 0:00:20.3]} 61... Bd6 {[%clk 0:00:03.7]} 62. Kd5
{[%clk 0:00:20.5]} 62... Bf4 {[%clk 0:00:03.5]} 63. Rb2 {[%clk 0:00:19.9]} 63...
g4 {[%clk 0:00:02.6]} 64. Rxb4 {[%clk 0:00:19.5]} 64... Bxh2 {[%clk 0:00:02.6]}
65. Rxg4 {[%clk 0:00:19.2]} 65... Bc7 {[%clk 0:00:03.1]} 66. Rh4 {[%clk
0:00:17.8]} 66... Bg3 {[%clk 0:00:02.7]} 67. Rh6+ {[%clk 0:00:17.5]} 67... Kg7
{[%clk 0:00:02.9]} 68. Rh3 {[%clk 0:00:16.7]} 68... Bc7 {[%clk 0:00:02.8]} 69.
Rf3 {[%clk 0:00:16]} 69... Kg6 {[%clk 0:00:02.7]} 70. Rf8 {[%clk 0:00:15.4]}
70... Bg3 {[%clk 0:00:02]} 71. Kc6 {[%clk 0:00:14.9]} 71... Kg5 {[%clk
0:00:01.9]} 72. Kb7 {[%clk 0:00:15]} 72... Kg6 {[%clk 0:00:02.1]} 73. Kc8 {[%clk
0:00:15.1]} 73... Kg7 {[%clk 0:00:02.5]} 74. Rf3 {[%clk 0:00:14.4]} 74... Be5
{[%clk 0:00:02.6]} 75. Kd8 {[%clk 0:00:14.4]} 75... Bf6 {[%clk 0:00:03.2]} 76.
Rxf6 {[%clk 0:00:13.5]} 76... Kxf6 {[%clk 0:00:03.2]} 77. Bc8 {[%clk 0:00:13.7]}
77... Rg7 {[%clk 0:00:03.3]} 78. Bd7 {[%clk 0:00:12]} 78... Rg8+ {[%clk
0:00:03]} 79. Kc7 {[%clk 0:00:11.6]} 79... Ke7 {[%clk 0:00:02.4]} 80. Kc6 {[%clk
0:00:11.2]} 80... Rg4 {[%clk 0:00:02.4]} 81. Kd5 {[%clk 0:00:11.4]} 81... Rg5+
{[%clk 0:00:02.6]} 82. Ke4 {[%clk 0:00:11.6]} 82... Rg6 {[%clk 0:00:03]} 83. Kf5
{[%clk 0:00:11.3]} 83... Rf6+ {[%clk 0:00:03.1]} 84. Ke5 {[%clk 0:00:11.4]}
84... Rf8 {[%clk 0:00:03.2]} 85. Ke4 {[%clk 0:00:11.4]} 85... Rb8 {[%clk
0:00:03.6]} 86. Ke5 {[%clk 0:00:11.6]} 86... Rb6 {[%clk 0:00:03.3]} 87. Ke4
{[%clk 0:00:11.8]} 87... Rxe6+ {[%clk 0:00:03.4]} 88. Bxe6 {[%clk 0:00:11.6]}
1/2-1/2

[Event "*** Titled Tuesday Blitz"]
[Site "Chess.com"]
[Date "2021.04.20"]
[Round "4"]
[White "Oleksandr_Bortnyk"]
[Black "seorobert1971"]
[Result "1-0"]
[WhiteElo "2944"]
[BlackElo "2717"]
[TimeControl "180+1"]
[EndTime "10:32:39 PDT"]
[Termination "Oleksandr_Bortnyk won by resignation"]

1. e4 {[%clk 0:03:00.9]} 1... e6 {[%clk 0:03:00.1]} 2. d4 {[%clk 0:02:57.2]}
2... d5 {[%clk 0:03:01]} 3. Nc3 {[%clk 0:02:57.2]} 3... Nf6 {[%clk 0:03:01.1]}
4. Bg5 {[%clk 0:02:56.9]} 4... Be7 {[%clk 0:02:59.7]} 5. Bxf6 {[%clk 0:02:52.5]}
5... Bxf6 {[%clk 0:02:59.6]} 6. Nf3 {[%clk 0:02:53.4]} 6... O-O {[%clk
0:02:53.9]} 7. Bd3 {[%clk 0:02:53.4]} 7... c5 {[%clk 0:02:50.6]} 8. dxc5 {[%clk
0:02:49.7]} 8... Bxc3+ {[%clk 0:02:45.5]} 9. bxc3 {[%clk 0:02:50.6]} 9... Qa5
{[%clk 0:02:44.5]} 10. O-O {[%clk 0:02:41.8]} 10... dxe4 {[%clk 0:02:43.8]} 11.
Bxe4 {[%clk 0:02:40.5]} 11... Qxc3 {[%clk 0:02:43.8]} 12. Qd6 {[%clk 0:02:20.8]}
12... Na6 {[%clk 0:02:36]} 13. Bxh7+ {[%clk 0:02:11.4]} 13... Kxh7 {[%clk
0:02:30.8]} 14. Qxf8 {[%clk 0:02:11.3]} 1-0

[Event "*** Titled Tuesday Blitz"]
[Site "Chess.com"]
[Date "2021.04.20"]
[Round "4"]
[White "Irishchessman16"]
[Black "korkmaz16"]
[Result "0-1"]
[WhiteElo "2275"]
[BlackElo "2450"]
[TimeControl "180+1"]
[EndTime "10:33:52 PDT"]
[Termination "korkmaz16 won by resignation"]

1. e4 {[%clk 0:03:00.9]} 1... d5 {[%clk 0:02:58.6]} 2. exd5 {[%clk 0:03:00.7]}
2... Nf6 {[%clk 0:02:59.1]} 3. d4 {[%clk 0:02:52.9]} 3... Bg4 {[%clk 0:02:56.9]}
4. f3 {[%clk 0:02:46.3]} 4... Bf5 {[%clk 0:02:53.8]} 5. c4 {[%clk 0:02:46.1]}
5... e6 {[%clk 0:02:51.1]} 6. dxe6 {[%clk 0:02:44.5]} 6... Nc6 {[%clk
0:02:49.8]} 7. d5 {[%clk 0:02:42]} 7... Nb4 {[%clk 0:02:49.1]} 8. Na3 {[%clk
0:02:41.3]} 8... Bc5 {[%clk 0:02:46]} 9. Be2 {[%clk 0:01:56.8]} 9... O-O {[%clk
0:02:37.1]} 10. exf7+ {[%clk 0:01:55.7]} 10... Rxf7 {[%clk 0:02:36.2]} 11. Bg5
{[%clk 0:01:50.5]} 11... Qe7 {[%clk 0:02:32.7]} 12. Kf1 {[%clk 0:01:38.8]} 12...
h6 {[%clk 0:02:29.2]} 13. Bh4 {[%clk 0:01:38]} 13... Re8 {[%clk 0:02:28.6]} 14.
h3 {[%clk 0:01:26]} 14... g5 {[%clk 0:02:26.1]} 15. Bf2 {[%clk 0:01:22.2]} 15...
Bxf2 {[%clk 0:02:24.1]} 16. Kxf2 {[%clk 0:01:23.1]} 16... Qe3+ {[%clk
0:02:21.3]} 17. Kf1 {[%clk 0:01:22.5]} 17... Nh5 {[%clk 0:02:17]} 0-1

[Event "*** Titled Tuesday Blitz"]
[Site "Chess.com"]
[Date "2021.04.20"]
[Round "4"]
[White "chessmadara"]
[Black "Nara_Kh"]
[Result "0-1"]
[WhiteElo "2168"]
[BlackElo "2449"]
[TimeControl "180+1"]
[EndTime "10:33:56 PDT"]
[Termination "Nara_Kh won by resignation"]

1. c4 {[%clk 0:03:00.9]} 1... g6 {[%clk 0:02:59.9]} 2. Nf3 {[%clk 0:02:59.6]}
2... Bg7 {[%clk 0:03:00.2]} 3. g3 {[%clk 0:02:59.8]} 3... f5 {[%clk 0:03:00.6]}
4. Bg2 {[%clk 0:02:59.6]} 4... e5 {[%clk 0:03:00.5]} 5. d3 {[%clk 0:02:57.5]}
5... d6 {[%clk 0:02:56.6]} 6. O-O {[%clk 0:02:57.1]} 6... Nf6 {[%clk 0:02:55.9]}
7. Nc3 {[%clk 0:02:56.7]} 7... O-O {[%clk 0:02:54.9]} 8. b4 {[%clk 0:02:48.1]}
8... c6 {[%clk 0:02:54.5]} 9. Rb1 {[%clk 0:02:47.1]} 9... Be6 {[%clk 0:02:53.5]}
10. b5 {[%clk 0:02:45.5]} 10... Nbd7 {[%clk 0:02:48.7]} 11. Ng5 {[%clk
0:02:44.1]} 11... Nc5 {[%clk 0:02:37.3]} 12. Nxe6 {[%clk 0:02:36.4]} 12... Nxe6
{[%clk 0:02:38.2]} 13. bxc6 {[%clk 0:02:36.6]} 13... bxc6 {[%clk 0:02:38.5]} 14.
Bxc6 {[%clk 0:02:36.5]} 14... Rc8 {[%clk 0:02:39.1]} 15. Bb7 {[%clk 0:02:33.5]}
15... Rb8 {[%clk 0:02:36.4]} 16. Be3 {[%clk 0:02:24.8]} 16... Qa5 {[%clk
0:02:32.3]} 17. Nd5 {[%clk 0:02:09]} 17... Ng4 {[%clk 0:02:20.7]} 18. Bd2 {[%clk
0:01:54]} 18... Qxa2 {[%clk 0:02:15.5]} 19. Ra1 {[%clk 0:01:48.2]} 19... Qb2
{[%clk 0:02:14.2]} 20. Bc3 {[%clk 0:01:46.1]} 20... Qxb7 {[%clk 0:02:13.4]} 0-1

[Event "*** Titled Tuesday Blitz"]
[Site "Chess.com"]
[Date "2021.04.20"]
[Round "4"]
[White "dhaessel"]
[Black "tusplingher"]
[Result "0-1"]
[WhiteElo "2082"]
[BlackElo "2254"]
[TimeControl "180+1"]
[EndTime "10:34:22 PDT"]
[Termination "tusplingher won on time"]

1. d4 {[%clk 0:03:00.9]} 1... Nf6 {[%clk 0:02:59.6]} 2. c4 {[%clk 0:03:00.2]}
2... e6 {[%clk 0:02:59.4]} 3. Nc3 {[%clk 0:02:59.7]} 3... Bb4 {[%clk 0:02:58.7]}
4. e3 {[%clk 0:02:59.9]} 4... c5 {[%clk 0:02:57.9]} 5. Bd3 {[%clk 0:02:49.7]}
5... cxd4 {[%clk 0:02:57.3]} 6. exd4 {[%clk 0:02:48.5]} 6... Nc6 {[%clk
0:02:57.9]} 7. Nf3 {[%clk 0:02:44.4]} 7... d5 {[%clk 0:02:58]} 8. O-O {[%clk
0:02:32.3]} 8... dxc4 {[%clk 0:02:57.1]} 9. Bxc4 {[%clk 0:02:31.7]} 9... O-O
{[%clk 0:02:57.6]} 10. Bg5 {[%clk 0:02:29.5]} 10... h6 {[%clk 0:02:54.5]} 11.
Bh4 {[%clk 0:02:24.6]} 11... a6 {[%clk 0:02:54.3]} 12. Qe2 {[%clk 0:01:01.6]}
12... Nxd4 {[%clk 0:02:47.9]} 0-1